fUSD/lending_fUSD_20240213
["ID","MTS","AMOUNT","RATE_DAILY","PERIOD"]
[313930549,1707835843212,-500.0,0.00029315,2]
[313930550,1707835843221,-500.0,0.00029315,2]
[313930551,1707835843230,-500.0,0.00029315,2]
[313930552,1707835843240,-500.0,0.00029315,2]
[313930553,1707835843249,-500.0,0.00029315,2]
[313930554,1707835843258,-500.0,0.00029315,2]
[313930555,1707835843268,-500.0,0.00029315,2]
[313930556,1707835843277,-500.0,0.00029315,2]
[313930557,1707835843286,-500.0,0.00029315,2]
[313930558,1707835843296,-500.0,0.00029315,2]
[313930559,1707835843305,-500.0,0.00029315,2]
[313930560,1707835843314,-500.0,0.00029315,2]
[313930561,1707835843323,-500.0,0.00029315,2]
[313930562,1707835843334,-500.0,0.00029315,2]
[313930563,1707835843343,-500.0,0.00029315,2]
[313930564,1707835843353,-500.0,0.00029315,2]
[313930565,1707835843363,-500.0,0.00029315,2]
[313930566,1707835843374,-500.0,0.00029315,2]
[313930567,1707835843385,-500.0,0.00029315,2]
[313930568,1707835843396,-500.0,0.00029315,2]
[313930569,1707835843406,-500.0,0.00029315,2]
[313930570,1707835843415,-500.0,0.00029315,2]
[313930571,1707835843426,-500.0,0.00029315,2]
[313930572,1707835843436,-500.0,0.00029315,2]
[313930573,1707835843445,-500.0,0.00029315,2]
[313930574,1707835843454,-500.0,0.00029315,2]
[313930575,1707835843463,-500.0,0.00029315,2]
[313930576,1707835843472,-500.0,0.00029315,2]
[313930577,1707835843481,-359.98010465,0.00029315,2]
[313930578,1707835843490,-500.0,0.00029315,2]
[313930579,1707835843500,-500.0,0.00029315,2]
[313930580,1707835843509,-500.0,0.00029315,2]
[313930581,1707835843518,-500.0,0.00029315,2]
[313930582,1707835843527,-500.0,0.00029315,2]
[313930583,1707835843537,-500.0,0.00029315,2]
[313930584,1707835843546,-572.93,0.00029315,2]
[313930585,1707835843555,-500.0,0.00029315,2]
[313930586,1707835843565,-1023.05,0.00029315,2]
[313930587,1707835843574,-500.0,0.00029315,2]
[313930588,1707835843583,-500.0,0.00029315,2]
[313930589,1707835843592,-500.0,0.00029315,2]
[313930590,1707835843601,-500.0,0.00029315,2]
[313930592,1707835843611,-500.0,0.00029315,2]
[313930594,1707835843620,-508.74816791,0.00029315,2]
[313930596,1707835843629,-500.0,0.00029315,2]
[313930598,1707835843638,-500.0,0.00029315,2]
[313930600,1707835843648,-500.0,0.00029315,2]
[313930602,1707835843657,-1651.56,0.00029315,2]
[313930604,1707835843666,-797.24,0.00029315,2]
[313930605,1707835843678,-500.0,0.00029315,2]
[313930607,1707835843691,-500.0,0.00029315,2]
[313930608,1707835843700,-500.0,0.00029315,2]
[313930609,1707835843710,-500.0,0.00029315,2]
[313930610,1707835843719,-526.71458455,0.00029315,2]
[313930611,1707835843728,-500.0,0.00029315,2]
[313930612,1707835843737,-500.0,0.00029315,2]
[313930613,1707835843748,-500.0,0.00029315,2]
[313930614,1707835843757,-500.0,0.00029315,2]
[313930615,1707835843766,-500.0,0.00029315,2]
[313930616,1707835843775,-500.0,0.00029315,2]
[313930617,1707835843785,-500.0,0.00029315,2]
[313930618,1707835843795,-500.0,0.00029315,2]
[313930619,1707835843805,-500.0,0.00029315,2]
[313930620,1707835843814,-500.0,0.00029315,2]
[313930621,1707835843824,-500.0,0.00029315,2]
[313930622,1707835843833,-618.51,0.00029315,2]
[313930623,1707835843843,-500.0,0.00029315,2]
[313930624,1707835843852,-500.0,0.00029387,2]
[313930625,1707835843862,-500.0,0.00029387,2]
[313930626,1707835843871,-500.0,0.00029387,2]
[313930627,1707835843881,-500.0,0.00029387,2]
[313930628,1707835843890,-500.0,0.00029387,2]
[313930629,1707835843899,-500.0,0.00029387,2]
[313930630,1707835843908,-500.0,0.00029387,2]
[313930631,1707835843918,-500.0,0.00029387,2]
[313930632,1707835843930,-500.0,0.00029387,2]
[313930633,1707835843940,-500.0,0.00029387,2]
[313930634,1707835843951,-500.0,0.00029387,2]
[313930635,1707835843961,-500.0,0.00029387,2]
[313930636,1707835843970,-500.0,0.00029387,2]
[313930637,1707835843979,-500.0,0.00029387,2]
[313930638,1707835843988,-500.0,0.00029387,2]
[313930639,1707835843997,-500.0,0.00029387,2]
[313930640,1707835844007,-500.0,0.00029387,2]
[313930641,1707835844017,-500.0,0.00029387,2]
[313930642,1707835844027,-905.64,0.00029387,2]
[313930643,1707835844036,-500.0,0.00029387,2]
[313930644,1707835844046,-500.0,0.00029387,2]
[313930645,1707835844056,-896.63,0.00029387,2]
[313930646,1707835844066,-500.0,0.00029387,2]
[313930647,1707835844077,-500.0,0.00029387,2]
[313930648,1707835844086,-500.0,0.00029387,2]
[313930649,1707835844096,-500.0,0.00029387,2]
[313930650,1707835844107,-500.0,0.00029387,2]
[313930651,1707835844117,-500.0,0.00029387,2]
[313930652,1707835844127,-635.8,0.00029387,2]
[313930653,1707835844137,-500.0,0.00029387,2]
[313930654,1707835844146,-500.0,0.00029387,2]
[313930655,1707835844157,-500.0,0.00029387,2]
[313930656,1707835844168,-500.0,0.00029387,2]
[313930657,1707835844181,-500.0,0.00029387,2]
[313930658,1707835844191,-500.0,0.00029387,2]
[313930659,1707835844201,-500.0,0.00029387,2]
[313930660,1707835844210,-500.0,0.00029387,2]
[313930661,1707835844220,-500.0,0.00029387,2]
[313930662,1707835844229,-500.0,0.00029387,2]
[313930663,1707835844239,-500.0,0.00029387,2]
[313930664,1707835844249,-500.0,0.00029387,2]
[313930665,1707835844258,-481.38,0.00029491,2]
[313930666,1707835844268,-323.50340506,0.00029589,2]
[313930667,1707835844277,-500.0,0.00029589,2]
[313930668,1707835844287,-500.0,0.00029589,2]
[313930669,1707835844296,-500.0,0.00029589,2]
[313930670,1707835844306,-500.0,0.00029589,2]
[313930671,1707835844316,-500.0,0.00029589,2]
[313930672,1707835844326,-586.29,0.00029589,2]
[313930673,1707835844337,-500.0,0.00029589,2]
[313930674,1707835844347,-500.0,0.00029589,2]
[313930675,1707835844357,-669.91,0.00029589,2]
[313930676,1707835844367,-500.0,0.00029589,2]
[313930677,1707835844377,-500.0,0.00029589,2]
[313930678,1707835844386,-500.0,0.00029589,2]
[313930679,1707835844396,-500.0,0.00029589,2]
[313930680,1707835844405,-594.96,0.00029589,2]
[313930681,1707835844414,-500.0,0.00029589,2]
[313930682,1707835844425,-500.0,0.00029589,2]
[313930683,1707835844434,-500.0,0.00029589,2]
[313930684,1707835844444,-500.0,0.00029589,2]
[313930685,1707835844453,-500.0,0.00029589,2]
[313930686,1707835844462,-320.65,0.00029589,2]
[313930687,1707835844471,-500.0,0.00029589,2]
[313930688,1707835844480,-500.0,0.00029589,2]
[313930689,1707835844489,-418.59,0.00029589,2]
[313930690,1707835844499,-500.0,0.00029589,2]
[313930691,1707835844508,-500.0,0.00029589,2]
[313930692,1707835844517,-500.0,0.00029589,2]
[313930693,1707835844527,-500.0,0.00029589,2]
[313930694,1707835844537,-500.0,0.00029589,2]
[313930695,1707835844547,-500.0,0.00029589,2]
[313930696,1707835844556,-500.0,0.00029589,2]
[313930697,1707835844566,-500.0,0.00029589,2]
[313930698,1707835844575,-500.0,0.00029589,2]
[313930699,1707835844586,-500.0,0.00029589,2]
[313930700,1707835844595,-500.0,0.00029589,2]
[313930701,1707835844610,-500.0,0.00029589,2]
[313930702,1707835844619,-641.84,0.00029589,2]
[313930703,1707835844632,-500.0,0.00029589,2]
[313930704,1707835844642,-500.0,0.00029589,2]
[313930705,1707835844652,-500.0,0.00029589,2]
[313930706,1707835844670,-500.0,0.00029589,2]
[313930707,1707835844694,-500.0,0.00029589,2]
[313930708,1707835844706,-500.0,0.00029589,2]
[313930709,1707835844717,-572.93,0.00029589,2]
[313930710,1707835844727,-500.0,0.00029589,2]
[313930711,1707835844738,-1023.05,0.00029589,2]
[313930712,1707835844747,-500.0,0.00029589,2]
[313930713,1707835844758,-500.0,0.00029589,2]
[313930714,1707835844768,-500.0,0.00029589,2]
[313930715,1707835844778,-500.0,0.00029589,2]
[313930716,1707835844787,-500.0,0.00029589,2]
[313930717,1707835844797,-500.0,0.00029589,2]
[313930718,1707835844806,-500.0,0.00029589,2]
[313930719,1707835844815,-1651.56,0.00029589,2]
[313930720,1707835844824,-797.24,0.00029589,2]
[313930721,1707835844833,-500.0,0.00029589,2]
[313930722,1707835844841,-279.61724196,0.00029589,2]
[313930723,1707835844850,-500.0,0.00029589,2]
[313930724,1707835844859,-500.0,0.00029589,2]
[313930725,1707835844868,-500.0,0.00029589,2]
[313930726,1707835844878,-500.0,0.00029589,2]
[313930727,1707835844887,-500.0,0.00029589,2]
[313930728,1707835844896,-500.0,0.00029589,2]
[313930729,1707835844905,-500.0,0.00029589,2]
[313930730,1707835844914,-500.0,0.00029589,2]
[313930731,1707835844928,-500.0,0.00029589,2]
[313930732,1707835844937,-500.0,0.00029589,2]
[313930733,1707835844946,-500.0,0.00029589,2]
[313930734,1707835844955,-618.51,0.00029589,2]
[313930735,1707835844965,-500.0,0.00029589,2]
[313930736,1707835844974,-337.66314601,0.00029661,2]
[313930737,1707835844983,-283.55636002,0.00029661,2]
[313930738,1707835844992,-500.0,0.00029661,2]
[313930739,1707835845002,-500.0,0.00029661,2]
[313930740,1707835845011,-500.0,0.00029661,2]
[313930741,1707835845021,-500.0,0.00029661,2]
[313930742,1707835845030,-500.0,0.00029661,2]
[313930743,1707835845039,-578.17973587,0.00029661,2]
[313930744,1707835845049,-500.0,0.00029661,2]
[313930745,1707835845058,-500.0,0.00029661,2]
[313930746,1707835845067,-500.0,0.00029661,2]
[313930747,1707835845077,-500.0,0.00029661,2]
[313930748,1707835845085,-500.0,0.00029661,2]
[313930749,1707835845095,-905.64,0.00029661,2]
[313930750,1707835845104,-500.0,0.00029661,2]
[313930751,1707835845113,-500.0,0.00029661,2]
[313930752,1707835845122,-896.63,0.00029661,2]
[313930753,1707835845131,-500.0,0.00029661,2]
[313930754,1707835845140,-500.0,0.00029661,2]
[313930755,1707835845149,-500.0,0.00029661,2]
[313930756,1707835845158,-500.0,0.00029661,2]
[313930757,1707835845167,-500.0,0.00029661,2]
[313930758,1707835845181,-635.8,0.00029661,2]
[313930759,1707835845191,-500.0,0.00029661,2]
[313930760,1707835845200,-500.0,0.00029661,2]
[313930761,1707835845329,-500.0,0.00029661,2]
[313930762,1707835845339,-500.0,0.00029661,2]
[313930763,1707835845349,-500.0,0.00029661,2]
[313930764,1707835845359,-500.0,0.00029661,2]
[313930765,1707835845369,-500.0,0.00029661,2]
[313930766,1707835845379,-500.0,0.00029661,2]
[313930767,1707835845389,-570.36,0.00029661,2]
[313930768,1707835845398,-213.0,0.00029708,11]
[313930769,1707835845408,-817.37,0.00029714,2]
[313930770,1707835845417,-27896.18543217,0.00029715,2]
[313930771,1707835845431,-500.0,0.00029763,2]
[313930772,1707835845440,-500.0,0.00029863,2]
[313930773,1707835845449,-500.0,0.00029863,2]
[313930774,1707835845458,-500.0,0.00029863,2]
[313930775,1707835845467,-669.91,0.00029863,2]
[313930776,1707835845476,-500.0,0.00029863,2]
[313930777,1707835845485,-500.0,0.00029863,2]
[313930778,1707835845494,-643.51,0.00029863,2]
[313930779,1707835845503,-500.0,0.00029863,2]
[313930780,1707835845512,-500.0,0.00029863,2]
[313930781,1707835845522,-500.0,0.00029863,2]
[313930782,1707835845530,-500.0,0.00029863,2]
[313930783,1707835845539,-294.10306488,0.00029863,2]
[313930784,1707835845548,-500.0,0.00029863,2]
[313930785,1707835845557,-500.0,0.00029863,2]
[313930786,1707835845566,-638.76,0.00029863,2]
[313930787,1707835845574,-500.0,0.00029863,2]
[313930788,1707835845583,-566.26,0.00029863,2]
[313930789,1707835845592,-500.0,0.00029863,2]
[313930790,1707835845601,-500.0,0.00029863,2]
[313930791,1707835845610,-500.0,0.00029863,2]
[313930792,1707835845619,-556.68,0.00029863,2]
[313930793,1707835845628,-500.0,0.00029863,2]
[313930794,1707835845637,-470.28,0.00029863,2]
[313930795,1707835845646,-500.0,0.00029863,2]
[313930796,1707835845656,-500.0,0.00029863,2]
[313930797,1707835845666,-258.0,0.00029863,2]
[313930798,1707835845678,-500.0,0.00029863,2]
[313930799,1707835845689,-500.0,0.00029863,2]
[313930800,1707835845698,-572.93,0.00029863,2]
[313930801,1707835845708,-500.0,0.00029863,2]
[313930802,1707835845717,-1023.05,0.00029863,2]
[313930803,1707835845726,-500.0,0.00029863,2]
[313930804,1707835845735,-500.0,0.00029863,2]
[313930805,1707835845745,-500.0,0.00029863,2]
[313930806,1707835845754,-500.0,0.00029863,2]
[313930807,1707835845763,-181.78320659,0.00029863,2]
[313930808,1707835845771,-1651.56,0.00029863,2]
[313930809,1707835845781,-797.24,0.00029863,2]
[313930810,1707835845789,-500.0,0.00029863,2]
[313930811,1707835845798,-500.0,0.00029863,2]
[313930812,1707835845807,-500.0,0.00029863,2]
[313930813,1707835845816,-500.0,0.00029863,2]
[313930814,1707835845825,-500.0,0.00029863,2]
[313930815,1707835845836,-500.0,0.00029863,2]
[313930816,1707835845845,-500.0,0.00029863,2]
[313930817,1707835845854,-500.0,0.00029863,2]
[313930818,1707835845863,-500.0,0.00029863,2]
[313930819,1707835845872,-500.0,0.00029863,2]
[313930820,1707835845881,-618.51,0.00029863,2]
[313930821,1707835845890,-500.0,0.00029863,2]
[313930822,1707835845899,-207.45195881,0.000299,2]
[313930824,1707835845908,-200.0,0.000299,10]
[313930825,1707835845917,-500.0,0.00029935,2]
[313930826,1707835845929,-500.0,0.00029935,2]
[313930827,1707835845938,-500.0,0.00029935,2]
[313930828,1707835845947,-500.0,0.00029935,2]
[313930829,1707835845956,-905.64,0.00029935,2]
[313930830,1707835845965,-500.0,0.00029935,2]
[313930831,1707835845973,-896.63,0.00029935,2]
[313930832,1707835845982,-500.0,0.00029935,2]
[313930833,1707835845993,-500.0,0.00029935,2]
[313930834,1707835846002,-500.0,0.00029935,2]
[313930835,1707835846011,-500.0,0.00029935,2]
[313930836,1707835846019,-635.8,0.00029935,2]
[313930837,1707835846029,-500.0,0.00029935,2]
[313930838,1707835846038,-150.68,0.00029935,2]
[313930839,1707835846046,-500.0,0.00029976,2]
[313930840,1707835846055,-3387.11544009,0.00029977,7]
[313930841,1707835846064,-14742.49266551,0.00029977,7]
[313930842,1707835846073,-1491.09216627,0.00029977,7]
[313930843,1707835846083,-500.0,0.00029999,2]
[313930844,1707835846092,-623.85914324,0.0003,4]
[313930845,1707835846102,-258.52891174,0.0003,2]
[313930846,1707835846111,-73383.11595309,0.0003,4]
[313930847,1707835846121,-69550.28586039,0.0003,2]
[313930848,1707835846131,-155.0,0.0003,2]
[313930849,1707835846143,-1403.44001117,0.0003,2]
[313930851,1707835846155,-16643.12864896,0.0003,3]
[313930853,1707835846165,-2987.67257103,0.00030008,4]
[313930855,1707835846177,-553.8,0.00030136,2]
[313930857,1707835846186,-500.0,0.00030136,2]
[313930859,1707835846196,-500.0,0.00030136,2]
[313930861,1707835846205,-669.91,0.00030136,2]
[313930863,1707835846214,-603.2,0.00030136,2]
[313930864,1707835846223,-500.0,0.00030136,2]
[313930865,1707835846232,-500.0,0.00030136,2]
[313930866,1707835846241,-576.41,0.00030136,2]
[313930867,1707835846251,-500.0,0.00030136,2]
[313930868,1707835846260,-500.0,0.00030136,2]
[313930869,1707835846269,-500.0,0.00030136,2]
[313930870,1707835846278,-500.0,0.00030136,2]
[313930871,1707835846287,-500.0,0.00030136,2]
[313930872,1707835846296,-500.0,0.00030136,2]
[313930873,1707835846305,-261.74,0.00030136,2]
[313930874,1707835846315,-500.0,0.00030136,2]
[313930875,1707835846324,-200.45,0.00030136,2]
[313930876,1707835846333,-500.0,0.00030136,2]
[313930877,1707835846342,-500.0,0.00030136,2]
[313930878,1707835846351,-500.0,0.00030136,2]
[313930879,1707835846360,-518.24,0.00030136,2]
[313930880,1707835846369,-572.93,0.00030136,2]
[313930881,1707835846378,-500.0,0.00030136,2]
[313930882,1707835846387,-1023.05,0.00030136,2]
[313930883,1707835846395,-547.08,0.00030136,2]
[313930884,1707835846406,-500.0,0.00030136,2]
[313930885,1707835846417,-500.0,0.00030136,2]
[313930886,1707835846429,-500.0,0.00030136,2]
[313930887,1707835846441,-1651.56,0.00030136,2]
[313930888,1707835846452,-797.24,0.00030136,2]
[313930889,1707835846463,-500.0,0.00030136,2]
[313930890,1707835846473,-500.0,0.00030136,2]
[313930891,1707835846483,-500.0,0.00030136,2]
[313930892,1707835846492,-500.0,0.00030136,2]
[313930893,1707835846501,-500.0,0.00030136,2]
[313930894,1707835846510,-500.0,0.00030136,2]
[313930895,1707835846519,-576.96,0.00030136,2]
[313930896,1707835846529,-500.0,0.00030136,2]
[313930897,1707835846538,-500.0,0.00030136,2]
[313930898,1707835846547,-500.0,0.00030136,2]
[313930899,1707835846556,-618.51,0.00030136,2]
[313930901,1707835846565,-500.0,0.00030136,2]
[313930903,1707835846574,-23805.0,0.00030137,7]
[313930905,1707835846583,-150.41,0.00030137,2]
[313930907,1707835846592,-182.63,0.0003016,2]
[313930909,1707835846601,-500.0,0.00030209,2]
[313930911,1707835846610,-500.0,0.00030209,2]
[313930913,1707835846619,-500.0,0.00030209,2]
[313930915,1707835846628,-500.0,0.00030209,2]
[313930917,1707835846636,-905.64,0.00030209,2]
[313930919,1707835846645,-244.08,0.00030209,2]
[313930921,1707835846654,-896.63,0.00030209,2]
[313930923,1707835846668,-500.0,0.00030209,2]
[313930925,1707835846680,-230.08,0.00030209,2]
[313930927,1707835846689,-500.0,0.00030209,2]
[313930929,1707835846699,-635.8,0.00030209,2]
[313930931,1707835846709,-500.0,0.00030209,2]
[313930933,1707835846717,-324.62770337,0.00030356,2]
[313930935,1707835846726,-500.0,0.0003041,2]
[313930937,1707835846735,-500.0,0.0003041,2]
[313930939,1707835846745,-669.91,0.0003041,2]
[313930941,1707835846754,-500.0,0.0003041,2]
[313930943,1707835846762,-500.0,0.0003041,2]
[313930945,1707835846772,-500.0,0.0003041,2]
[313930947,1707835846781,-500.0,0.0003041,2]
[313930949,1707835846790,-212.79,0.0003041,2]
[313930951,1707835846799,-619.66873602,0.0003041,2]
[313930953,1707835846808,-500.0,0.0003041,2]
[313930955,1707835846818,-500.0,0.0003041,2]
[313930958,1707835846831,-500.0,0.0003041,2]
[313930960,1707835846840,-318.13114044,0.0003041,2]
[313930962,1707835846849,-500.0,0.0003041,2]
[313930964,1707835846858,-500.0,0.0003041,2]
[313930966,1707835846867,-572.93,0.0003041,2]
[313930968,1707835846876,-500.0,0.0003041,2]
[313930970,1707835846884,-1023.05,0.0003041,2]
[313930972,1707835846893,-354.16,0.0003041,2]
[313930974,1707835846902,-342.69,0.0003041,2]
[313930976,1707835846911,-469.36,0.0003041,2]
[313930978,1707835846920,-1651.56,0.0003041,2]
[313930980,1707835846932,-797.24,0.0003041,2]
[313930982,1707835846941,-500.0,0.0003041,2]
[313930983,1707835846950,-500.0,0.0003041,2]
[313930986,1707835846959,-500.0,0.0003041,2]
[313930988,1707835846969,-500.0,0.0003041,2]
[313930990,1707835846978,-500.0,0.0003041,2]
[313930992,1707835846988,-500.0,0.0003041,2]
[313930994,1707835846996,-500.0,0.0003041,2]
[313930996,1707835847005,-500.0,0.0003041,2]
[313930997,1707835847014,-500.0,0.0003041,2]
[313930999,1707835847023,-618.51,0.0003041,2]
[313931001,1707835847032,-500.0,0.0003041,2]
[313931003,1707835847041,-500.0,0.00030483,2]
[313931005,1707835847050,-500.0,0.00030483,2]
[313931007,1707835847059,-500.0,0.00030483,2]
[313931009,1707835847069,-500.0,0.00030483,2]
[313931011,1707835847077,-905.64,0.00030483,2]
[313931013,1707835847086,-896.63,0.00030483,2]
[313931015,1707835847095,-500.0,0.00030483,2]
[313931017,1707835847104,-500.0,0.00030483,2]
[313931019,1707835847113,-635.8,0.00030483,2]
[313931021,1707835847122,-500.0,0.00030483,2]
[313931023,1707835847131,-164.31,0.00030592,2]
[313931025,1707835847140,-151.0,0.00030609,120]
[313931027,1707835847149,-500.0,0.00030684,2]
[313931029,1707835847158,-596.23,0.00030684,2]
[313931032,1707835847167,-669.91,0.00030684,2]
[313931033,1707835847180,-500.0,0.00030684,2]
[313931035,1707835847189,-500.0,0.00030684,2]
[313931037,1707835847198,-500.0,0.00030684,2]
[313931039,1707835847207,-500.0,0.00030684,2]
[313931041,1707835847216,-500.0,0.00030684,2]
[313931043,1707835847225,-500.0,0.00030684,2]
[313931045,1707835847235,-500.0,0.00030684,2]
[313931047,1707835847245,-500.0,0.00030684,2]
[313931049,1707835847254,-500.0,0.00030684,2]
[313931051,1707835847263,-572.93,0.00030684,2]
[313931053,1707835847271,-500.0,0.00030684,2]
[313931055,1707835847280,-1023.05,0.00030684,2]
[313931057,1707835847289,-1651.56,0.00030684,2]
[313931059,1707835847298,-797.24,0.00030684,2]
[313931061,1707835847306,-500.0,0.00030684,2]
[313931063,1707835847315,-369.96,0.00030684,2]
[313931065,1707835847324,-500.0,0.00030684,2]
[313931067,1707835847333,-500.0,0.00030684,2]
[313931069,1707835847342,-500.0,0.00030684,2]
[313931071,1707835847351,-500.0,0.00030684,2]
[313931073,1707835847360,-500.0,0.00030684,2]
[313931075,1707835847369,-500.0,0.00030684,2]
[313931077,1707835847378,-500.0,0.00030684,2]
[313931079,1707835847387,-618.51,0.00030684,2]
[313931081,1707835847399,-500.0,0.00030757,2]
[313931083,1707835847408,-262.08,0.00030757,2]
[313931085,1707835847417,-500.0,0.00030757,2]
[313931087,1707835847433,-335.96,0.00030757,2]
[313931089,1707835847442,-905.64,0.00030757,2]
[313931090,1707835847453,-896.63,0.00030757,2]
[313931091,1707835847462,-500.0,0.00030757,2]
[313931092,1707835847471,-161.56,0.00030757,2]
[313931093,1707835847481,-635.8,0.00030757,2]
[313931094,1707835847490,-500.0,0.00030757,2]
[313931095,1707835847499,-153.41,0.000308,2]
[313931096,1707835847508,-153.41,0.000308,2]
[313931097,1707835847517,-6663.0,0.000309,5]
[313931098,1707835847526,-500.0,0.00030958,2]
[313931099,1707835847535,-669.91,0.00030958,2]
[313931100,1707835847543,-406.79,0.00030958,2]
[313931101,1707835847552,-500.0,0.00030958,2]
[313931102,1707835847561,-500.0,0.00030958,2]
[313931103,1707835847569,-500.0,0.00030958,2]
[313931104,1707835847578,-500.0,0.00030958,2]
[313931105,1707835847587,-500.0,0.00030958,2]
[313931106,1707835847597,-500.0,0.00030958,2]
[313931107,1707835847606,-500.0,0.00030958,2]
[313931108,1707835847615,-383.27,0.00030958,2]
[313931109,1707835847624,-572.93,0.00030958,2]
[313931110,1707835847632,-500.0,0.00030958,2]
[313931111,1707835847640,-1023.05,0.00030958,2]
[313931113,1707835847649,-1651.56,0.00030958,2]
[313931114,1707835847659,-797.24,0.00030958,2]
[313931116,1707835847668,-500.0,0.00030958,2]
[313931117,1707835847681,-500.0,0.00030958,2]
[313931118,1707835847696,-500.0,0.00030958,2]
[313931119,1707835847706,-500.0,0.00030958,2]
[313931120,1707835847716,-173.57,0.00030958,2]
[313931121,1707835847725,-500.0,0.00030958,2]
[313931122,1707835847737,-500.0,0.00030958,2]
[313931123,1707835847746,-235.96545265,0.00030958,2]
[313931124,1707835847756,-618.51,0.00030958,2]
[313931125,1707835847765,-556.240024,0.0003098,120]
[313931126,1707835847774,-50000.0,0.00031,2]
[313931127,1707835847783,-258.00607391,0.00031,4]
[313931128,1707835847793,-500.0,0.00031,3]
[313931129,1707835847803,-4000.0,0.00031,2]
[313931130,1707835847812,-500.0,0.00031031,2]
[313931131,1707835847821,-424.68,0.00031031,2]
[313931132,1707835847830,-905.64,0.00031031,2]
[313931133,1707835847841,-896.63,0.00031031,2]
[313931134,1707835847850,-500.0,0.00031031,2]
[313931135,1707835847858,-635.8,0.00031031,2]
[313931136,1707835847867,-500.0,0.00031031,2]
[313931137,1707835847876,-207.4519588,0.00031096,2]
[313931138,1707835847885,-500.0,0.00031232,2]
[313931139,1707835847897,-669.91,0.00031232,2]
[313931140,1707835847906,-419.61,0.00031232,2]
[313931141,1707835847915,-500.0,0.00031232,2]
[313931142,1707835847928,-500.0,0.00031232,2]
[313931143,1707835847937,-500.0,0.00031232,2]
[313931144,1707835847946,-500.0,0.00031232,2]
[313931145,1707835847955,-500.0,0.00031232,2]
[313931146,1707835847964,-500.0,0.00031232,2]
[313931147,1707835847973,-572.93,0.00031232,2]
[313931148,1707835848097,-500.0,0.00031232,2]
[313931149,1707835848106,-1023.05,0.00031232,2]
[313931150,1707835848115,-1651.56,0.00031232,2]
[313931151,1707835848125,-797.24,0.00031232,2]
[313931152,1707835848134,-500.0,0.00031232,2]
[313931153,1707835848144,-500.0,0.00031232,2]
[313931154,1707835848153,-500.0,0.00031232,2]
[313931155,1707835848162,-606.86332322,0.00031232,2]
[313931156,1707835848171,-500.0,0.00031232,2]
[313931157,1707835848184,-500.0,0.00031232,2]
[313931158,1707835848194,-618.51,0.00031232,2]
[313931159,1707835848203,-151.0,0.00031234,30]
[313931160,1707835848213,-2987.67257103,0.00031276,5]
[313931161,1707835848222,-500.0,0.00031305,2]